[Event "Early-Titled-Tuesday-Blitz-March-05-2024"]
[Site "Chess.com"]
[Date "2024.03.05"]
[Round "5"]
[White "DavidGavrilescu18"]
[Black "ChessLebaneseSalah"]
[Result "0-1"]
[WhiteElo "2748"]
[BlackElo "2565"]
[TimeControl "180+1"]
[EndTime "8:58:35 PST"]
[Termination "ChessLebaneseSalah won by checkmate"]

1. e4 {[%clk 0:02:57.6]} 1... e5 {[%clk 0:02:57.5]} 2. Bc4 {[%clk 0:02:56.5]}
2... Nc6 {[%clk 0:02:57.2]} 3. Nc3 {[%clk 0:02:54.4]} 3... Nf6 {[%clk
0:02:52.5]} 4. d3 {[%clk 0:02:51.7]} 4... Bc5 {[%clk 0:02:48.7]} 5. f4 {[%clk
0:02:48.3]} 5... d6 {[%clk 0:02:44.9]} 6. Nf3 {[%clk 0:02:45.4]} 6... Bg4 {[%clk
0:02:39.2]} 7. Na4 {[%clk 0:02:44.6]} 7... Bd4 {[%clk 0:02:34.2]} 8. c3 {[%clk
0:02:44.4]} 8... Bb6 {[%clk 0:02:32.8]} 9. Nxb6 {[%clk 0:02:45]} 9... axb6
{[%clk 0:02:32.7]} 10. O-O {[%clk 0:02:45.7]} 10... O-O {[%clk 0:02:29.3]} 11.
h3 {[%clk 0:02:45.9]} 11... Be6 {[%clk 0:02:27.9]} 12. Bb5 {[%clk 0:02:40.9]}
12... exf4 {[%clk 0:02:25.3]} 13. Bxf4 {[%clk 0:02:41.8]} 13... d5 {[%clk
0:02:24.9]} 14. Bg5 {[%clk 0:02:36]} 14... dxe4 {[%clk 0:02:20.7]} 15. Bxc6
{[%clk 0:02:36.4]} 15... bxc6 {[%clk 0:02:12.4]} 16. Nd4 {[%clk 0:02:36.6]}
16... exd3 {[%clk 0:02:02.7]} 17. Bxf6 {[%clk 0:02:30.5]} 17... gxf6 {[%clk
0:02:00.7]} 18. Qxd3 {[%clk 0:02:31]} 18... Kh8 {[%clk 0:01:51.2]} 19. Qe3
{[%clk 0:02:13.6]} 19... Bd5 {[%clk 0:01:43.9]} 20. Nf5 {[%clk 0:02:06.8]} 20...
Rg8 {[%clk 0:01:37.8]} 21. g4 {[%clk 0:02:07]} 21... Rxa2 {[%clk 0:01:23.9]} 22.
Rad1 {[%clk 0:01:48.4]} 22... Rxb2 {[%clk 0:01:14.8]} 23. c4 {[%clk 0:01:48.7]}
23... Rg2+ {[%clk 0:01:13.9]} 24. Kh1 {[%clk 0:01:49.3]} 24... Rd2+ {[%clk
0:00:34.3]} 25. Kg1 {[%clk 0:01:41.2]} 25... Rg2+ {[%clk 0:00:26.9]} 26. Kh1
{[%clk 0:00:52.6]} 26... Rd2+ {[%clk 0:00:19.3]} 27. cxd5 {[%clk 0:00:28.1]}
27... Qxd5+ {[%clk 0:00:18.8]} 28. Qf3 {[%clk 0:00:29]} 28... Qxf3+ {[%clk
0:00:11.9]} 29. Rxf3 {[%clk 0:00:29.9]} 29... Rxd1+ {[%clk 0:00:12.4]} 30. Kg2
{[%clk 0:00:30.8]} 30... c5 {[%clk 0:00:11.4]} 31. Re3 {[%clk 0:00:29.5]} 31...
Rd2+ {[%clk 0:00:10.7]} 32. Kg3 {[%clk 0:00:28.9]} 32... c4 {[%clk 0:00:11]} 33.
Re7 {[%clk 0:00:29.5]} 33... c3 {[%clk 0:00:10]} 34. Rxc7 {[%clk 0:00:29.7]}
34... c2 {[%clk 0:00:09]} 35. Nh6 {[%clk 0:00:29.9]} 35... Rf8 {[%clk
0:00:06.9]} 36. Kh4 {[%clk 0:00:27.6]} 36... b5 {[%clk 0:00:05.4]} 37. Nf5
{[%clk 0:00:27.1]} 37... b4 {[%clk 0:00:04.5]} 38. Ng3 {[%clk 0:00:28]} 38... b3
{[%clk 0:00:04.3]} 39. Ne4 {[%clk 0:00:28.9]} 39... Rd4 {[%clk 0:00:03.2]} 40.
Nxf6 {[%clk 0:00:28.7]} 40... b2 {[%clk 0:00:03.2]} 41. Rxc2 {[%clk 0:00:28.2]}
41... b1=Q {[%clk 0:00:03.4]} 42. Re2 {[%clk 0:00:29.1]} 42... Qg6 {[%clk
0:00:03.7]} 43. Nh5 {[%clk 0:00:29.4]} 43... f6 {[%clk 0:00:03.5]} 44. Re7
{[%clk 0:00:29.1]} 44... Qg5+ {[%clk 0:00:03.9]} 45. Kg3 {[%clk 0:00:29.4]}
45... Rd3+ {[%clk 0:00:04.6]} 46. Kf2 {[%clk 0:00:29.6]} 46... Qd2+ {[%clk
0:00:05.2]} 47. Re2 {[%clk 0:00:30.1]} 47... Qc3 {[%clk 0:00:04.5]} 48. Kg2
{[%clk 0:00:28.4]} 48... Rxh3 {[%clk 0:00:04.2]} 49. Rf2 {[%clk 0:00:28.9]}
49... Rxh5 {[%clk 0:00:04]} 50. gxh5 {[%clk 0:00:29.8]} 50... Qc6+ {[%clk
0:00:03.8]} 51. Kh2 {[%clk 0:00:29.9]} 51... Rg8 {[%clk 0:00:04.7]} 52. Re2
{[%clk 0:00:27.4]} 52... Qc7+ {[%clk 0:00:04.7]} 53. Kh1 {[%clk 0:00:26.9]}
53... Qg3 {[%clk 0:00:05.3]} 54. h6 {[%clk 0:00:20.4]} 54... Qg1# {[%clk
0:00:05.3]} 0-1

[Event "Early-Titled-Tuesday-Blitz-March-05-2024"]
[Site "Chess.com"]
[Date "2024.03.05"]
[Round "5"]
[White "Shahdad2007"]
[Black "Njal28"]
[Result "1/2-1/2"]
[WhiteElo "2572"]
[BlackElo "3018"]
[TimeControl "180+1"]
[EndTime "8:58:37 PST"]
[Termination "Game drawn by repetition"]

1. Nf3 {[%clk 0:03:00.9]} 1... Nf6 {[%clk 0:02:59.3]} 2. c4 {[%clk 0:03:00.6]}
2... e6 {[%clk 0:02:59.6]} 3. g3 {[%clk 0:03:00.6]} 3... d5 {[%clk 0:03:00.1]}
4. Bg2 {[%clk 0:03:00.9]} 4... Be7 {[%clk 0:03:00.6]} 5. O-O {[%clk 0:03:01.1]}
5... O-O {[%clk 0:03:01.3]} 6. d4 {[%clk 0:03:01.5]} 6... dxc4 {[%clk
0:03:01.9]} 7. Qc2 {[%clk 0:03:01.7]} 7... a6 {[%clk 0:03:02.6]} 8. Qxc4 {[%clk
0:03:00.2]} 8... b5 {[%clk 0:03:02.8]} 9. Qc2 {[%clk 0:02:58.3]} 9... Bb7 {[%clk
0:03:03]} 10. Bd2 {[%clk 0:02:58.5]} 10... Be4 {[%clk 0:03:03.3]} 11. Qc1 {[%clk
0:02:58.1]} 11... c6 {[%clk 0:03:04]} 12. Nc3 {[%clk 0:02:56.1]} 12... Bxf3
{[%clk 0:02:59.3]} 13. Bxf3 {[%clk 0:02:49.7]} 13... Qxd4 {[%clk 0:02:59.7]} 14.
Be3 {[%clk 0:02:47.1]} 14... Qd8 {[%clk 0:02:29.6]} 15. Rd1 {[%clk 0:02:46.4]}
15... Nd5 {[%clk 0:02:19.6]} 16. Ne4 {[%clk 0:02:45.4]} 16... Nd7 {[%clk
0:02:07.2]} 17. Qxc6 {[%clk 0:02:42.7]} 17... Ne5 {[%clk 0:02:05.5]} 18. Qc2
{[%clk 0:02:31]} 18... Nxe3 {[%clk 0:02:02.3]} 19. fxe3 {[%clk 0:02:30.1]} 19...
Qb6 {[%clk 0:02:02.7]} 20. Qb3 {[%clk 0:02:22.1]} 20... Nc4 {[%clk 0:01:56.8]}
21. Kf2 {[%clk 0:02:18.3]} 21... f5 {[%clk 0:01:39]} 22. Nd2 {[%clk 0:01:35.4]}
22... Nxe3 {[%clk 0:01:36.4]} 23. Ke1 {[%clk 0:01:33.4]} 23... Nxd1 {[%clk
0:01:28.9]} 24. Rxd1 {[%clk 0:01:31.5]} 24... Rad8 {[%clk 0:01:28]} 25. Kf1
{[%clk 0:01:30.5]} 25... Bg5 {[%clk 0:01:24.9]} 26. Nb1 {[%clk 0:01:24.5]} 26...
Rxd1+ {[%clk 0:01:21.4]} 27. Qxd1 {[%clk 0:01:25.4]} 27... Rd8 {[%clk
0:01:21.7]} 28. Qb3 {[%clk 0:01:24.7]} 28... Qe3 {[%clk 0:01:12]} 29. Nc3 {[%clk
0:01:24.2]} 29... Bf6 {[%clk 0:01:10.8]} 30. Kg2 {[%clk 0:01:20.2]} 30... g5
{[%clk 0:01:08.2]} 31. h3 {[%clk 0:01:19]} 31... Kg7 {[%clk 0:01:07.8]} 32. Qa3
{[%clk 0:01:17]} 32... h5 {[%clk 0:00:53.1]} 33. Bxh5 {[%clk 0:01:15.6]} 33...
g4 {[%clk 0:00:34.8]} 34. hxg4 {[%clk 0:01:15.4]} 34... f4 {[%clk 0:00:27]} 35.
gxf4 {[%clk 0:01:11.8]} 35... Qxf4 {[%clk 0:00:18]} 36. Qxa6 {[%clk 0:01:03.7]}
36... Be5 {[%clk 0:00:16.8]} 37. Qb7+ {[%clk 0:01:01.1]} 37... Kh6 {[%clk
0:00:12.3]} 38. Ne4 {[%clk 0:00:44.8]} 38... Qh2+ {[%clk 0:00:10.9]} 39. Kf3
{[%clk 0:00:44.6]} 39... Qh3+ {[%clk 0:00:08.6]} 40. Kf2 {[%clk 0:00:43.3]}
40... Bd4+ {[%clk 0:00:07.9]} 41. Ke1 {[%clk 0:00:42.1]} 41... Qh1+ {[%clk
0:00:03.8]} 42. Kd2 {[%clk 0:00:41.8]} 42... Bxb2+ {[%clk 0:00:04.4]} 43. Kc2
{[%clk 0:00:40.3]} 43... Qc1+ {[%clk 0:00:05]} 44. Kb3 {[%clk 0:00:40]} 44...
Be5 {[%clk 0:00:05.7]} 45. g5+ {[%clk 0:00:32]} 45... Kxh5 {[%clk 0:00:06.2]}
46. Qf7+ {[%clk 0:00:32.4]} 46... Kg4 {[%clk 0:00:06.6]} 47. Qf3+ {[%clk
0:00:32.2]} 47... Kh4 {[%clk 0:00:07.1]} 48. Qf2+ {[%clk 0:00:31.8]} 48... Kh5
{[%clk 0:00:04.2]} 49. Qf7+ {[%clk 0:00:32.3]} 49... Kh4 {[%clk 0:00:03.4]} 50.
Qf2+ {[%clk 0:00:32.7]} 50... Kh3 {[%clk 0:00:03.1]} 51. Qf3+ {[%clk 0:00:29.9]}
51... Kh2 {[%clk 0:00:03.2]} 52. Qf2+ {[%clk 0:00:29.4]} 52... Kh1 {[%clk
0:00:03.1]} 53. Qf3+ {[%clk 0:00:29.1]} 53... Kh2 {[%clk 0:00:02.6]} 54. Qf2+
{[%clk 0:00:29.4]} 54... Kh3 {[%clk 0:00:03.3]} 55. Qf3+ {[%clk 0:00:29.5]}
55... Kh4 {[%clk 0:00:04]} 56. Qf2+ {[%clk 0:00:29.9]} 1/2-1/2

[Event "Early-Titled-Tuesday-Blitz-March-05-2024"]
[Site "Chess.com"]
[Date "2024.03.05"]
[Round "5"]
[White "Batica1984"]
[Black "Pingah9"]
[Result "1-0"]
[WhiteElo "2783"]
[BlackElo "2593"]
[TimeControl "180+1"]
[EndTime "8:58:37 PST"]
[Termination "Batica1984 won by resignation"]

1. e4 {[%clk 0:02:55.5]} 1... g6 {[%clk 0:02:59.6]} 2. d4 {[%clk 0:02:54.7]}
2... Bg7 {[%clk 0:02:59.9]} 3. Nc3 {[%clk 0:02:53.9]} 3... d6 {[%clk 0:03:00]}
4. Bg5 {[%clk 0:02:50.2]} 4... h6 {[%clk 0:02:58.6]} 5. Bh4 {[%clk 0:02:49.5]}
5... a6 {[%clk 0:02:58.5]} 6. Qd2 {[%clk 0:02:48.7]} 6... Nd7 {[%clk 0:02:58.1]}
7. f4 {[%clk 0:02:48.3]} 7... b5 {[%clk 0:02:55.6]} 8. Nf3 {[%clk 0:02:47.2]}
8... Bb7 {[%clk 0:02:55.3]} 9. O-O-O {[%clk 0:02:26.6]} 9... b4 {[%clk
0:02:45.5]} 10. Nd5 {[%clk 0:02:24.6]} 10... Bxd5 {[%clk 0:02:45.6]} 11. exd5
{[%clk 0:02:24]} 11... Ngf6 {[%clk 0:02:46.5]} 12. Qxb4 {[%clk 0:02:21.8]} 12...
Nxd5 {[%clk 0:02:37.7]} 13. Qd2 {[%clk 0:02:13.9]} 13... N7f6 {[%clk 0:02:31]}
14. Bd3 {[%clk 0:02:10.4]} 14... Qd7 {[%clk 0:02:28.9]} 15. c4 {[%clk
0:02:00.6]} 15... Nb6 {[%clk 0:02:26.1]} 16. Rhe1 {[%clk 0:01:58.1]} 16... O-O
{[%clk 0:02:19.9]} 17. f5 {[%clk 0:01:44.1]} 17... g5 {[%clk 0:02:19.4]} 18. Bf2
{[%clk 0:01:39.2]} 18... Qa4 {[%clk 0:01:41.4]} 19. b3 {[%clk 0:01:37.1]} 19...
Qa3+ {[%clk 0:01:36.4]} 20. Qb2 {[%clk 0:01:35.1]} 20... Qxb2+ {[%clk 0:01:27]}
21. Kxb2 {[%clk 0:01:36]} 21... Ng4 {[%clk 0:01:15.5]} 22. Bg1 {[%clk
0:01:33.4]} 22... Rfe8 {[%clk 0:01:13.9]} 23. a4 {[%clk 0:01:29.5]} 23... a5
{[%clk 0:01:08.2]} 24. Kc2 {[%clk 0:01:29.3]} 24... Rab8 {[%clk 0:01:04]} 25.
Re2 {[%clk 0:01:26.3]} 25... c6 {[%clk 0:00:47.1]} 26. Rde1 {[%clk 0:01:25.3]}
26... Rb7 {[%clk 0:00:47.5]} 27. h3 {[%clk 0:01:19.1]} 27... Nf6 {[%clk
0:00:47.3]} 28. g4 {[%clk 0:01:19.4]} 28... Kf8 {[%clk 0:00:46.5]} 29. Bh2
{[%clk 0:01:18]} 29... Reb8 {[%clk 0:00:45.4]} 30. Rxe7 {[%clk 0:00:53.5]} 30...
Rxe7 {[%clk 0:00:36.1]} 31. Bxd6 {[%clk 0:00:50.6]} 31... Nc8 {[%clk 0:00:33.4]}
32. Bxb8 {[%clk 0:00:47.6]} 32... Rb7 {[%clk 0:00:31.9]} 33. Be5 {[%clk
0:00:46.2]} 33... Nd7 {[%clk 0:00:26.9]} 34. Bxg7+ {[%clk 0:00:45.5]} 34... Kxg7
{[%clk 0:00:27.8]} 35. Ne5 {[%clk 0:00:45.5]} 35... Nxe5 {[%clk 0:00:20.5]} 36.
Rxe5 {[%clk 0:00:44.8]} 36... Rd7 {[%clk 0:00:20.7]} 37. Kc3 {[%clk 0:00:44.2]}
37... f6 {[%clk 0:00:15.5]} 38. Rxa5 {[%clk 0:00:43.9]} 38... h5 {[%clk
0:00:16.2]} 39. Rc5 {[%clk 0:00:42.8]} 39... Ne7 {[%clk 0:00:16]} 40. a5 {[%clk
0:00:43]} 40... hxg4 {[%clk 0:00:16.2]} 41. hxg4 {[%clk 0:00:43.3]} 41... Ra7
{[%clk 0:00:16.6]} 42. b4 {[%clk 0:00:43.2]} 42... Ra8 {[%clk 0:00:16.8]} 43.
Be4 {[%clk 0:00:42.8]} 43... Ra6 {[%clk 0:00:15.8]} 44. d5 {[%clk 0:00:41.7]}
44... cxd5 {[%clk 0:00:15.8]} 45. Bxd5 {[%clk 0:00:42.1]} 45... Kf8 {[%clk
0:00:16.1]} 46. Be6 {[%clk 0:00:41.8]} 46... Ke8 {[%clk 0:00:16.1]} 47. Rc7
{[%clk 0:00:40.7]} 47... Ra8 {[%clk 0:00:12.4]} 48. c5 {[%clk 0:00:39.9]} 48...
Ra6 {[%clk 0:00:11.9]} 49. Kc4 {[%clk 0:00:40]} 49... Ra8 {[%clk 0:00:11.9]} 50.
Kb5 {[%clk 0:00:39.9]} 50... Rb8+ {[%clk 0:00:11.8]} 51. Ka4 {[%clk 0:00:40.1]}
51... Ra8 {[%clk 0:00:09.6]} 52. b5 {[%clk 0:00:40.4]} 52... Kd8 {[%clk
0:00:08.5]} 53. Rd7+ {[%clk 0:00:40.1]} 53... Ke8 {[%clk 0:00:08]} 54. a6 {[%clk
0:00:40.6]} 54... Nc8 {[%clk 0:00:05.6]} 55. Ka5 {[%clk 0:00:39.7]} 55... Na7
{[%clk 0:00:05]} 56. Rxa7 {[%clk 0:00:38.6]} 56... Rxa7 {[%clk 0:00:05]} 57. b6
{[%clk 0:00:39.1]} 1-0

[Event "Early-Titled-Tuesday-Blitz-March-05-2024"]
[Site "Chess.com"]
[Date "2024.03.05"]
[Round "5"]
[White "SahibSinghKnight"]
[Black "vovachesss"]
[Result "0-1"]
[WhiteElo "2575"]
[BlackElo "2801"]
[TimeControl "180+1"]
[EndTime "8:58:37 PST"]
[Termination "vovachesss won by resignation"]

1. e4 {[%clk 0:03:00.9]} 1... Nf6 {[%clk 0:02:53.4]} 2. e5 {[%clk 0:02:56.5]}
2... Nd5 {[%clk 0:02:52]} 3. c4 {[%clk 0:02:54.7]} 3... Nb6 {[%clk 0:02:52.3]}
4. d4 {[%clk 0:02:55]} 4... d6 {[%clk 0:02:52.9]} 5. exd6 {[%clk 0:02:50.7]}
5... exd6 {[%clk 0:02:53.8]} 6. Nc3 {[%clk 0:02:50.2]} 6... Be7 {[%clk 0:02:54]}
7. Be3 {[%clk 0:02:49.9]} 7... O-O {[%clk 0:02:54.2]} 8. Rc1 {[%clk 0:02:50.5]}
8... Nc6 {[%clk 0:02:53.6]} 9. b3 {[%clk 0:02:39]} 9... Bg5 {[%clk 0:02:53.2]}
10. Nf3 {[%clk 0:02:29.8]} 10... Bxe3 {[%clk 0:02:52.1]} 11. fxe3 {[%clk
0:02:30.7]} 11... Re8 {[%clk 0:02:52.4]} 12. Kf2 {[%clk 0:02:22.2]} 12... Bf5
{[%clk 0:02:43.8]} 13. Bd3 {[%clk 0:02:17]} 13... Qf6 {[%clk 0:02:39.4]} 14.
Bxf5 {[%clk 0:02:06]} 14... Qxf5 {[%clk 0:02:38.3]} 15. Qc2 {[%clk 0:02:06.9]}
15... Qf6 {[%clk 0:02:33.5]} 16. Rhe1 {[%clk 0:02:01.9]} 16... Re7 {[%clk
0:02:28]} 17. Kg1 {[%clk 0:01:57.4]} 17... Rae8 {[%clk 0:02:27.2]} 18. Qd2
{[%clk 0:01:56.7]} 18... Qh6 {[%clk 0:02:20.7]} 19. Kf2 {[%clk 0:01:53.1]} 19...
Nd8 {[%clk 0:01:52.3]} 20. e4 {[%clk 0:01:32.1]} 20... Qh5 {[%clk 0:01:45]} 21.
Qg5 {[%clk 0:01:27.4]} 21... Qxg5 {[%clk 0:01:39.2]} 22. Nxg5 {[%clk 0:01:27.5]}
22... Ne6 {[%clk 0:01:39.5]} 23. Nf3 {[%clk 0:01:10.4]} 23... c6 {[%clk
0:01:32.5]} 24. Rcd1 {[%clk 0:01:09.4]} 24... h6 {[%clk 0:01:32.2]} 25. d5
{[%clk 0:01:05]} 25... cxd5 {[%clk 0:01:32.4]} 26. exd5 {[%clk 0:01:05]} 26...
Nc5 {[%clk 0:01:29.1]} 27. Rxe7 {[%clk 0:01:03.5]} 27... Rxe7 {[%clk 0:01:30]}
28. Nd4 {[%clk 0:01:02.6]} 28... g6 {[%clk 0:01:22.1]} 29. Kf1 {[%clk
0:00:44.6]} 29... a6 {[%clk 0:01:17.8]} 30. Re1 {[%clk 0:00:41.1]} 30... Kf8
{[%clk 0:01:18.4]} 31. Rxe7 {[%clk 0:00:40.5]} 31... Kxe7 {[%clk 0:01:19.3]} 32.
Ke2 {[%clk 0:00:41]} 32... f5 {[%clk 0:01:16.9]} 33. Ke3 {[%clk 0:00:38.4]}
33... Kf6 {[%clk 0:01:17.1]} 34. Nde2 {[%clk 0:00:28.3]} 34... Ke5 {[%clk
0:01:15.8]} 35. Nf4 {[%clk 0:00:24.9]} 35... g5 {[%clk 0:01:14.6]} 36. Nd3+
{[%clk 0:00:25.3]} 36... Nxd3 {[%clk 0:01:13.8]} 37. Kxd3 {[%clk 0:00:26.2]}
37... Nd7 {[%clk 0:01:13.5]} 38. b4 {[%clk 0:00:25.9]} 38... g4 {[%clk
0:01:12.2]} 39. a4 {[%clk 0:00:15.2]} 39... a5 {[%clk 0:01:11.1]} 40. bxa5
{[%clk 0:00:12.5]} 40... Nc5+ {[%clk 0:01:11.2]} 41. Ke2 {[%clk 0:00:12.6]}
41... f4 {[%clk 0:01:03.9]} 42. g3 {[%clk 0:00:12.3]} 42... f3+ {[%clk
0:00:43.8]} 43. Ke3 {[%clk 0:00:12.2]} 43... h5 {[%clk 0:00:44.3]} 44. h3 {[%clk
0:00:03.7]} 44... Nb3 {[%clk 0:00:30.9]} 45. hxg4 {[%clk 0:00:04.1]} 45... hxg4
{[%clk 0:00:31.8]} 46. Ne4 {[%clk 0:00:03.9]} 46... Nxa5 {[%clk 0:00:31.2]} 47.
Nf2 {[%clk 0:00:03.8]} 47... Nxc4+ {[%clk 0:00:31.5]} 48. Kd3 {[%clk 0:00:04.1]}
48... Kxd5 {[%clk 0:00:32]} 49. Nxg4 {[%clk 0:00:04.3]} 49... Ne5+ {[%clk
0:00:32.2]} 50. Nxe5 {[%clk 0:00:02.9]} 50... dxe5 {[%clk 0:00:33.1]} 51. Ke3
{[%clk 0:00:02.2]} 51... e4 {[%clk 0:00:34]} 52. g4 {[%clk 0:00:03.1]} 52... Ke5
{[%clk 0:00:34.5]} 53. a5 {[%clk 0:00:04]} 53... Kf6 {[%clk 0:00:33.9]} 54. g5+
{[%clk 0:00:03.5]} 54... Kxg5 {[%clk 0:00:34.4]} 55. Kxe4 {[%clk 0:00:04.4]}
55... f2 {[%clk 0:00:34.2]} 56. Kd5 {[%clk 0:00:05.3]} 56... f1=Q {[%clk
0:00:34.2]} 0-1

[Event "Early-Titled-Tuesday-Blitz-March-05-2024"]
[Site "Chess.com"]
[Date "2024.03.05"]
[Round "5"]
[White "NikitaShnadrygin"]
[Black "K_A_S_T_O_R"]
[Result "1/2-1/2"]
[WhiteElo "2620"]
[BlackElo "2788"]
[TimeControl "180+1"]
[EndTime "8:58:39 PST"]
[Termination "Game drawn by stalemate"]

1. e4 {[%clk 0:02:57.3]} 1... c5 {[%clk 0:02:59.7]} 2. Nf3 {[%clk 0:02:56.7]}
2... d6 {[%clk 0:02:59.8]} 3. d4 {[%clk 0:02:56.9]} 3... cxd4 {[%clk 0:02:59.9]}
4. Nxd4 {[%clk 0:02:57.8]} 4... Nf6 {[%clk 0:03:00.1]} 5. Nc3 {[%clk 0:02:58.4]}
5... a6 {[%clk 0:03:00.6]} 6. f3 {[%clk 0:02:58.9]} 6... e6 {[%clk 0:02:58.9]}
7. g4 {[%clk 0:02:58.3]} 7... h6 {[%clk 0:02:54]} 8. Be3 {[%clk 0:02:56.8]} 8...
b5 {[%clk 0:02:51]} 9. a4 {[%clk 0:02:40]} 9... bxa4 {[%clk 0:02:43.4]} 10. Rxa4
{[%clk 0:02:36.7]} 10... Be7 {[%clk 0:02:41.9]} 11. Be2 {[%clk 0:02:31.4]} 11...
O-O {[%clk 0:02:40.1]} 12. O-O {[%clk 0:02:29.6]} 12... Bb7 {[%clk 0:02:36.4]}
13. Qd2 {[%clk 0:02:26.9]} 13... Nbd7 {[%clk 0:02:33.5]} 14. Nb3 {[%clk
0:02:09.7]} 14... d5 {[%clk 0:02:21.6]} 15. exd5 {[%clk 0:02:02.7]} 15... Nxd5
{[%clk 0:02:20.8]} 16. Nxd5 {[%clk 0:02:02.7]} 16... Bxd5 {[%clk 0:02:21]} 17.
Rxa6 {[%clk 0:01:58.3]} 17... Rxa6 {[%clk 0:02:15.8]} 18. Bxa6 {[%clk
0:01:59.2]} 18... Qa8 {[%clk 0:02:02.2]} 19. Be2 {[%clk 0:01:56.4]} 19... Ne5
{[%clk 0:02:00.7]} 20. f4 {[%clk 0:01:39.3]} 20... Nc4 {[%clk 0:01:57]} 21. Qd4
{[%clk 0:01:22.7]} 21... Bf6 {[%clk 0:01:54.9]} 22. Qd3 {[%clk 0:01:15.8]} 22...
Nxb2 {[%clk 0:01:52.3]} 23. Qb5 {[%clk 0:01:16.1]} 23... Rb8 {[%clk 0:01:51.2]}
24. Qd7 {[%clk 0:01:15.6]} 24... Bxb3 {[%clk 0:01:46.4]} 25. cxb3 {[%clk
0:01:15.4]} 25... Rxb3 {[%clk 0:01:46.5]} 26. Bf3 {[%clk 0:01:14.5]} 26... Qb8
{[%clk 0:01:40.8]} 27. Rc1 {[%clk 0:00:49]} 27... Rc3 {[%clk 0:01:34.4]} 28.
Rxc3 {[%clk 0:00:40.2]} 28... Bxc3 {[%clk 0:01:34.3]} 29. f5 {[%clk 0:00:40.8]}
29... Qe5 {[%clk 0:01:22.7]} 30. Bf2 {[%clk 0:00:40.2]} 30... exf5 {[%clk
0:01:21.6]} 31. gxf5 {[%clk 0:00:38]} 31... Qf6 {[%clk 0:01:19.5]} 32. Kf1
{[%clk 0:00:36.9]} 32... Be5 {[%clk 0:01:17.8]} 33. Bd5 {[%clk 0:00:33.4]} 33...
Bd6 {[%clk 0:01:05.3]} 34. Bxf7+ {[%clk 0:00:15.6]} 34... Qxf7 {[%clk
0:01:04.5]} 35. Qxd6 {[%clk 0:00:16.5]} 35... Nc4 {[%clk 0:01:00.5]} 36. Qd8+
{[%clk 0:00:15.6]} 36... Kh7 {[%clk 0:01:01]} 37. Qd4 {[%clk 0:00:16]} 37... Na5
{[%clk 0:00:51.7]} 38. Qe4 {[%clk 0:00:13.7]} 38... Nc4 {[%clk 0:00:47]} 39. f6+
{[%clk 0:00:13.5]} 39... g6 {[%clk 0:00:38.8]} 40. Qe7 {[%clk 0:00:12.3]} 40...
Qxe7 {[%clk 0:00:37.9]} 41. fxe7 {[%clk 0:00:12.9]} 41... Nd6 {[%clk 0:00:38.5]}
42. Bg3 {[%clk 0:00:13]} 42... Ne8 {[%clk 0:00:39]} 43. h4 {[%clk 0:00:12.3]}
43... Kg8 {[%clk 0:00:39.5]} 44. Bf4 {[%clk 0:00:12.8]} 44... h5 {[%clk
0:00:39.4]} 45. Bg5 {[%clk 0:00:13.4]} 45... Kf7 {[%clk 0:00:40.1]} 46. Kf2
{[%clk 0:00:14]} 46... Nc7 {[%clk 0:00:40.7]} 47. Kg3 {[%clk 0:00:13.9]} 47...
Nd5 {[%clk 0:00:41.1]} 48. Kf3 {[%clk 0:00:13.4]} 48... Nxe7 {[%clk 0:00:41.3]}
49. Bxe7 {[%clk 0:00:12.2]} 49... Kxe7 {[%clk 0:00:42.2]} 50. Ke4 {[%clk
0:00:12.3]} 50... Ke6 {[%clk 0:00:41.5]} 51. Kf4 {[%clk 0:00:12.7]} 51... Kf6
{[%clk 0:00:41.8]} 52. Ke4 {[%clk 0:00:13.4]} 52... Kf7 {[%clk 0:00:41.7]} 53.
Kf4 {[%clk 0:00:13.8]} 53... Ke6 {[%clk 0:00:40.3]} 54. Kg5 {[%clk 0:00:13.7]}
54... Kf7 {[%clk 0:00:40.2]} 55. Kf4 {[%clk 0:00:13.6]} 55... Kf6 {[%clk
0:00:39.4]} 56. Ke4 {[%clk 0:00:14]} 56... g5 {[%clk 0:00:38.4]} 57. hxg5+
{[%clk 0:00:13.8]} 57... Kxg5 {[%clk 0:00:39.3]} 58. Kf3 {[%clk 0:00:14.3]}
58... Kh4 {[%clk 0:00:38.7]} 59. Kg2 {[%clk 0:00:15.2]} 59... Kg4 {[%clk
0:00:39]} 60. Kh1 {[%clk 0:00:16.1]} 60... h4 {[%clk 0:00:39.9]} 61. Kg1 {[%clk
0:00:17]} 61... h3 {[%clk 0:00:40.8]} 62. Kh1 {[%clk 0:00:17.8]} 62... Kg3
{[%clk 0:00:41.6]} 63. Kg1 {[%clk 0:00:18.7]} 63... h2+ {[%clk 0:00:42.5]} 64.
Kh1 {[%clk 0:00:19.6]} 64... Kh3 {[%clk 0:00:43.4]} 1/2-1/2